Cogmind - Beta 13 @@@ ROGUE MODE // 2024.03.13 @ 12:57:25 Player: Darch Result: Destroyed by Y-54 Guardian with Gatling Laser Performance ------------- Evolutions (3) 1500 Regions Visited (6) 1200 Robots Destroyed (66) 330 Value Destroyed (2296) 2296 Prototype IDs (6) 120 Alien Tech Used (0) 0 Bonus (68) 68 TOTAL SCORE: 5514 Bonus ------- High Alert Combat Kills 178 Follower Combat Kills 60 Friendly Fire -170 Cogmind --------- Core Integrity 0/700 Matter 294/300 Energy 98/100 System Corruption 5% Temperature Cool (6) Movement Walking (200) Ox1 Location -7/Factory Parts ------- > --- POWER (2) -------- Light Nuclear Core > --- PROPULSION (4) --- Titanium Leg Titanium Leg > --- UTILITY (5) ------ Large Storage Unit Target Analyzer Hardened Medium Armor Plating Hardened Medium Armor Plating > --- WEAPON (2) ------- Heavy Battle Rifle > --- INVENTORY (15) --- Carbon-fiber Leg Improved Titanium Leg Large Storage Unit Advanced Terrain Scan Processor Backup Plating III Hardened Medium Armor Plating Layered Light Armor Plating Heavy Battle Rifle Peak State ------------ > --- POWER ------------ Backup Power III Light Nuclear Core > --- PROPULSION ------- Titanium Leg Titanium Leg Titanium Leg Titanium Leg > --- UTILITY ---------- Large Storage Unit Seismic Detector Advanced Reaction Control System Hardened Medium Armor Plating Hardened Medium Armor Plating > --- WEAPON ----------- Heavy Battle Rifle Tesla Bomb Launcher > --- INVENTORY -------- Light Deuterium Engine Carbon-fiber Leg Large Storage Unit Backup Plating III Hardened Medium Armor Plating Hardened Medium Armor Plating Hardened Medium Armor Plating Hardened Medium Armor Plating Layered Light Armor Plating Heavy Battle Rifle Heavy Battle Rifle Heavy Battle Rifle [Rating: 47] Favorites ----------- Power Light Nuclear Core Engine Backup Power III Power Core Light Nuclear Core Propulsion Titanium Leg Leg Titanium Leg Wheel Wheel Flight Unit Cooled Nuclear Pulse Thruster Utility Hardened Medium Armor Plating Device Advanced Reaction Control System Storage Large Storage Unit Processor Target Analyzer Protection Hardened Medium Armor Plating Weapon Heavy Battle Rifle Energy Gun Backup Laser III Ballistic Gun Heavy Battle Rifle Ballistic Cannon Mini Assault Cannon Launcher Rocket Launcher Build | -11 -10 -9 -8 -7 -7 -7 ------- Run | Yrd Mat Mat Mat Fac Was Fac Slots Evolved 6 | . . 2 2 2 . . Power 1 | . . . . 1 . . Propulsion 2 | . . . 2 . . . Utility 3 | . . 2 . 1 . . Weapon . | . . . . . . . Parts Attached 92 | 6 8 16 15 12 20 15 Power 11 | 1 . 2 2 2 1 3 Engine 6 | 1 . 2 1 1 . 1 Core 5 | . . . 1 1 1 2 Reactor . | . . . . . . . Propulsion 21 | 2 1 5 6 . 6 1 Treads . | . . . . . . . Leg 12 | . . 2 4 . 5 1 Wheel 8 | 2 1 3 2 . . . Hover . | . . . . . . . Flight 1 | . . . . . 1 . Utility 34 | 1 4 6 4 7 6 6 Device 9 | . 1 1 . 4 2 1 Storage 7 | 1 1 2 1 . 1 1 Processor 1 | . . . . . . 1 Hackware . | . . . . . . . Protection 17 | . 2 3 3 3 3 3 Artifact . | . . . . . . . Weapon 26 | 2 3 3 3 3 7 5 Energy Gun 1 | . . . . . 1 . Energy Cannon . | . . . . . . . Ballistic Gun 15 | 2 3 1 2 . 4 3 Ballistic Cannon 1 | . . . . 1 . . Launcher 9 | . . 2 1 2 2 2 Special Weapon . | . . . . . . . Impact Weapon . | . . . . . . . Slashing Weapon . | . . . . . . . Piercing Weapon . | . . . . . . . Special Melee Weapon . | . . . . . . . Unidentified Prototypes 4 | . . . 1 1 1 1 Parts Lost 29 | . 1 4 4 . 8 12 Power 8 | . 1 2 . . 1 4 Propulsion 3 | . . . . . 2 1 Utility 12 | . . 2 2 . 4 4 Weapon 6 | . . . 2 . 1 3 Highest Loss Streak 7 | . 1 3 2 . 7 6 To Critical Strikes . | . . . . . . . Average Slot Usage (%) 91 | . 94 94 87 94 80 97 Engine 6 | . 11 7 3 4 6 4 Core 5 | . . . 1 9 6 8 Leg 20 | . . 3 20 30 26 29 Wheel 7 | . 27 18 14 . . . Device 7 | . 2 10 . 9 6 8 Storage 7 | . 14 11 9 7 3 7 Protection 17 | . 9 22 23 15 14 18 Ballistic Gun 12 | . 28 15 7 5 11 11 Launcher 3 | . . 6 8 7 1 2 Naked Turns 48 | . . . . . 48 . Heaviest Build 103 | 13 21 102 103 58 62 67 Greatest Support 68 | 20 20 24 48 48 66 68 Greatest Overweight (x) 7 | . 2 4 7 1 1 1 Average Overweight (x) . | . . 2 . . . . Largest Inventory Capacity 25 | 8 10 25 25 15 15 15 Average Capacity 13 | 7 8 18 19 15 9 15 Most Carried 14 | 2 8 10 11 13 14 13 Average Carried 7 | 1 5 7 6 8 4 9 Final Capacity 25 | 8 10 25 15 15 15 15 Final Carried 13 | 2 7 10 6 13 5 8 Class Distribution -------------------- 100% | Mutant Dominant Class ---------------- Mutant | -10/Materials Mutant | -9/Materials Mutant | -8/Materials Mutant | -7/Factory Mutant | -7/Waste Mutant | -7/Factory Resources | -11 -10 -9 -8 -7 -7 -7 ----------- Run | Yrd Mat Mat Mat Fac Was Fac Matter Collected 2028 | 233 216 243 377 73 495 391 Remotely . | . . . . . . . Salvage Created 2840 | . 321 299 383 75 784 978 Parts 127 | . 18 19 25 5 . 60 Haulers Intercepted 1 | . . . 1 . . . Recyclers Shooed 1 | . . . 1 . . . Parts Field Recycled . | . . . . . . . Retrieved Matter . | . . . . . . . Parts Self-Destructed . | . . . . . . . Prevented . | . . . . . . . Kills | -11 -10 -9 -8 -7 -7 -7 ------- Run | Yrd Mat Mat Mat Fac Was Fac Combat Hostiles Destroyed 48 | . 8 7 12 2 3 16 Guns 24 | . 8 5 2 1 2 6 AOE 23 | . . 2 10 1 1 9 Classes Destroyed 12 | . 1 2 4 1 1 3 Worker 2 | . . . . 1 . 1 Builder 4 | . . 1 . 1 . 2 Tunneler 4 | . . . . . . 4 Hauler 1 | . . . 1 . . . Recycler 5 | . . . 2 . . 3 Operator 1 | . . . . . . 1 Swarmer 12 | . . . 8 . . 4 Grunt 24 | . 8 4 2 2 . 8 Brawler 1 | . . . 1 . . . Sentry 6 | . . 3 1 . . 2 Programmer 2 | . . . . . . 2 Compactor 3 | . . . . . 3 . Thug 1 | . . . . . 1 . Best Kill Streak 10 | . 3 2 10 3 2 8 Combat Bots Only 8 | . 3 2 8 1 2 4 Max Kills in Single Turn 8 | . 1 1 4 1 1 8 Gunslinging . | . . . . . . . Exploded 4 | . . 1 4 1 1 4 Melee . | . . . . . . . Uniques/NPCs Destroyed . | . . . . . . . Combat | -11 -10 -9 -8 -7 -7 -7 -------- Run | Yrd Mat Mat Mat Fac Was Fac Hostile Shots Fired 482 | . 46 67 42 5 10 312 Missed 161 | . 11 19 20 1 . 110 Damage Taken 4654 | 16 426 572 375 61 626 2578 Core 951 | . 114 85 43 31 506 172 Absorbed by Shields . | . . . . . . . Regen/Repaired (Parts) 29 | . 29 . . . . . Core Remaining (%) 81 | 100 54 78 92 . . . Volleys Fired 162 | . 33 41 17 7 22 42 Largest 2 | . 2 2 2 1 2 2 Hottest 79 | . 40 53 58 36 72 79 Shots Fired 256 | . 65 57 29 6 28 71 Gun 205 | . 65 52 15 5 12 56 Cannon 4 | . . . . . 4 . Launcher 47 | . . 5 14 1 12 15 Special . | . . . . . . . Kinetic 209 | . 65 52 15 5 16 56 Thermal . | . . . . . . . Explosive 32 | . . 5 14 1 12 . Electromagnetic 15 | . . . . . . 15 Robot Hit Streak 15 | . 8 8 2 6 15 7 Robot Miss Streak 4 | . 2 3 2 3 1 4 Penetration Max . | . . . . . . . Secondary Targets . | . . . . . . . Shots Hit Robots 157 | . 48 39 7 4 23 36 Core Hits 113 | 1 19 16 20 7 9 41 Critical Kills 2 | . . 1 . . 1 . Critical Parts Destroyed 1 | . . . 1 . . . Critical Strikes 4 | . . 1 1 . 2 . Destroy 4 | . . 1 1 . 2 . Melee Attacks . | . . . . . . . Impact . | . . . . . . . Slashing . | . . . . . . . Piercing . | . . . . . . . Sneak Attacks . | . . . . . . . Combat Hostiles . | . . . . . . . Follow-up Attacks . | . . . . . . . Damage Inflicted 6814 | 34 606 651 996 452 1630 2445 Guns 2028 | . 556 348 78 82 236 728 Cannons 110 | . . . . . 110 . Explosions 4374 | . . 279 883 237 1284 1691 Melee . | . . . . . . . Ramming 302 | 34 50 24 35 133 . 26 Kinetic 2138 | . 556 348 78 82 346 728 Thermal 581 | . . . . . . 581 Explosive 3152 | . . 279 883 237 1284 469 Electromagnetic 641 | . . . . . . 641 Impact . | . . . . . . . Slashing . | . . . . . . . Piercing . | . . . . . . . Highest Corruption 5 | 2 2 . 3 3 3 5 Average Corruption 3 | 2 2 . 2 2 3 3 Corruption Purged . | . . . . . . . Corruption Blocked . | . . . . . . . Effects 50 | . 3 . . 9 15 23 Message Errors 10 | . 2 . . 4 1 3 Matter Fused 8 | . . . . 1 3 4 Heat Flow Errors 5 | . . . . 1 1 3 Energy Discharges 10 | . . . . . 5 5 Parts Rejected 2 | . . . . . . 2 Parts Fused 2 | . . . . . 2 . Data Loss (minor) 4 | . . . . 2 . 2 Data Loss (major) 3 | . . . . . 1 2 Misfires 1 | . . . . . . 1 Alerts 3 | . . . . . 2 1 Weapon Failures 2 | . 1 . . 1 . . Overload Shots . | . . . . . . . Overflow Damage 281 | . . . 25 18 . 238 Projectiles . | . . . . . . . Explosions 263 | . . . 25 . . 238 Melee 18 | . . . . 18 . . Knockbacks 1 | . . . . . . 1 Impact 1 | . . . . . . 1 Kinetic . | . . . . . . . Secondary . | . . . . . . . Self-Inflicted Damage 647 | 16 23 12 120 . 155 321 Shots 20 | . . . 4 . 3 13 Rammed 17 | 8 6 3 . . . . Targets Rammed 33 | 8 6 3 1 10 . 5 Kicked 16 | . . . 1 10 . 5 Crushed . | . . . . . . . Highest Temperature 350 | . 16 21 45 164 206 350 Average Temperature 88 | . 4 7 18 38 47 118 Received Heat Transfer 1626 | . 225 294 72 54 . 981 Effects 7 | . . . . . . 7 Energy Bleed 2 | . . . . . . 2 Interference 4 | . . . . . . 4 Short Circuit 1 | . . . . . . 1 Siege Activations . | . . . . . . . Robots Corrupted 1 | . . . . . . 1 Combat Hostiles 1 | . . . . . . 1 Parts Fried 5 | . . . . 1 . 4 Impact Corruptions 1 | . . . . 1 . . Robots Melted . | . . . . . . . Combat Hostiles . | . . . . . . . Parts Melted . | . . . . . . . Heat Transferred 350 | . . . . . . 350 Parts Sabotaged . | . . . . . . . Parts Stolen . | . . . . . . . Parts Stripped . | . . . . . . . Power Chain Reactions 2 | . . . . . . 2 Alert | -11 -10 -9 -8 -7 -7 -7 ------- Run | Yrd Mat Mat Mat Fac Was Fac Peak Influence 972 | . 183 239 576 434 112 972 Initial 256 | . . 35 92 256 81 . Average 203 | . 73 80 378 291 23 388 Maximum Alert Level 3 | . . 1 2 2 . 3 Low Security (%) 65 | 100 100 95 26 . 100 42 Level 1 12 | . . 4 24 86 . . Level 2 17 | . . . 49 13 . 40 Level 3 4 | . . . . . . 16 Level 4 . | . . . . . . . Level 5 . | . . . . . . . High Security . | . . . . . . . Max Security . | . . . . . . . Squads Dispatched 17 | . 3 3 4 2 . 5 Investigation 2 | . 1 . . 1 . . Extermination 1 | . . . . . . 1 Reinforcement 11 | . 2 3 1 1 . 4 Assault . | . . . . . . . Garrison 3 | . . . 3 . . . Intercept . | . . . . . . . Searches Triggered . | . . . . . . . Construction Impeded 2 | . . . . . . 2 Haulers Reinforced 1 | . . . . 1 . . Active Scanning Responses . | . . . . . . . Cargo Convoy Interrupts . | . . . . . . . Stealth | -11 -10 -9 -8 -7 -7 -7 --------- Run | Yrd Mat Mat Mat Fac Was Fac Distress Signals 8 | . 1 1 4 1 . 1 Communications Jammed . | . . . . . . . Distress Signals . | . . . . . . . Times Spotted 88 | . 16 12 19 2 8 31 Peak Tracking Total 6 | . 6 2 4 1 5 5 Tactical Retreats 8 | . 1 2 . . 3 2 Traps | -11 -10 -9 -8 -7 -7 -7 ------- Run | Yrd Mat Mat Mat Fac Was Fac Traps Triggered 6 | . . . 2 3 . 1 Indirectly 1 | . . . . . . 1 Trap Hack Attempts . | . . . . . . . Triggered . | . . . . . . . Disarmed . | . . . . . . . Reprogrammed . | . . . . . . . Reused . | . . . . . . . Traps Extracted . | . . . . . . . Installed . | . . . . . . . Triggered . | . . . . . . . Machines | -11 -10 -9 -8 -7 -7 -7 ---------- Run | Yrd Mat Mat Mat Fac Was Fac Machines Disabled 45 | . . 2 4 5 . 34 Max in Single Turn 21 | . . 2 2 2 . 21 Machines Repaired . | . . . . . . . Machines Dismantled . | . . . . . . . Machines Sabotaged . | . . . . . . . Overloaded Fab Kills . | . . . . . . . Hacking | -11 -10 -9 -8 -7 -7 -7 --------- Run | Yrd Mat Mat Mat Fac Was Fac Machines Accessed 7 | . 4 1 . 2 . . Terminals 4 | . 2 . . 2 . . Fabricators . | . . . . . . . Repair Stations 1 | . 1 . . . . . Recycling Units 2 | . 1 1 . . . . Scanalyzers . | . . . . . . . Garrison Access . | . . . . . . . Total Hacks 15 | . 9 1 . 5 . . Successful 6 | . 5 1 . . . . Failed 9 | . 4 . . 5 . . Catastrophic . | . . . . . . . Database Lockouts . | . . . . . . . Manual 1 | . . . . 1 . . Terminals 10 | . 5 . . 5 . . Fabricators . | . . . . . . . Repair Stations 3 | . 3 . . . . . Recycling Units 2 | . 1 1 . . . . Scanalyzers . | . . . . . . . Garrison Access . | . . . . . . . Terminal Hacks 2 | . 2 . . . . . Prototype ID Bank 1 | . 1 . . . . . Dispatch Records 1 | . 1 . . . . . Fabricator Hacks . | . . . . . . . Repair Station Hacks 2 | . 2 . . . . . Scan Component 1 | . 1 . . . . . Repair 1 | . 1 . . . . . Recycling Unit Hacks 2 | . 1 1 . . . . Report Inventory 2 | . 1 1 . . . . Scanalyzer . | . . . . . . . Garrison Access Hacks . | . . . . . . . Unauthorized Hacks . | . . . . . . . Terminals . | . . . . . . . Fabricators . | . . . . . . . Repair Stations . | . . . . . . . Recycling Units . | . . . . . . . Scanalyzers . | . . . . . . . Garrison Access . | . . . . . . . Data Cores Recovered . | . . . . . . . Used . | . . . . . . . Hacking Detections 4 | . 2 . . 2 . . Full Trace Events 2 | . 1 . . 1 . . Feedback Events . | . . . . . . . Feedback Blocked . | . . . . . . . Robot Schematics Acquired . | . . . . . . . Robots Built . | . . . . . . . Authchips . | . . . . . . . Time . | . . . . . . . Total Robot Build Rating . | . . . . . . . Part Schematics Acquired . | . . . . . . . Parts Built . | . . . . . . . Authchips . | . . . . . . . Time . | . . . . . . . Total Part Build Rating . | . . . . . . . Parts Repaired 1 | . 1 . . . . . Time 26 | . 26 . . . . . Parts Recycled . | . . . . . . . Recycled Matter . | . . . . . . . Retrieved Matter . | . . . . . . . Retrieved Components . | . . . . . . . Parts Scanalyzed . | . . . . . . . Part Schematics Acquired . | . . . . . . . Parts Damaged . | . . . . . . . Bothacking | -11 -10 -9 -8 -7 -7 -7 ------------ Run | Yrd Mat Mat Mat Fac Was Fac Used RIF Installer . | . . . . . . . Robots Hacked . | . . . . . . . Non-combat . | . . . . . . . Combat . | . . . . . . . Robot Hacks Applied . | . . . . . . . Relay Couplers Released . | . . . . . . . Fabnet Peak Effective % . | . . . . . . . Robots Rewired . | . . . . . . . Allies Hacked . | . . . . . . . Hacks Repelled . | . . . . . . . Allies | -11 -10 -9 -8 -7 -7 -7 -------- Run | Yrd Mat Mat Mat Fac Was Fac Total Allies 19 | . . . . . 19 . Largest Group 18 | . . . . . 18 1 Highest-Rated Group 444 | . . . . . 444 27 Highest-Rated Ally 35 | . . . . . 35 27 Total Orders . | . . . . . . . Ally Attacks 102 | . . . . . 102 . Total Damage 3834 | . . . . . 3834 . Kills 12 | . . . . . 12 . Allies Corrupted . | . . . . . . . Allies Melted . | . . . . . . . Intel | -11 -10 -9 -8 -7 -7 -7 ------- Run | Yrd Mat Mat Mat Fac Was Fac Robot Analysis Total . | . . . . . . . Derelict Logs Recovered . | . . . . . . . Drone Launches . | . . . . . . . Drone Recoveries . | . . . . . . . Exploration | -11 -10 -9 -8 -7 -7 -7 ------------- Run | Yrd Mat Mat Mat Fac Was Fac Turns Passed 4198 | 47 480 759 345 467 892 1208 Spaces Moved 2871 | 36 400 461 218 322 673 761 Core 109 | 3 . . . . 106 . Treads . | . . . . . . . Legs 1854 | . . 67 137 322 567 761 Wheels 908 | 33 400 394 81 . . . Hover . | . . . . . . . Flight . | . . . . . . . Fastest Speed 50 | 50 80 80 90 90 50 127 Average Speed 116 | 77 83 131 105 108 120 131 Slowest Speed 720 | 80 110 190 720 180 180 200 Overloaded Moves . | . . . . . . . Propulsion Burnouts . | . . . . . . . Robots Hopped . | . . . . . . . Cave-ins Triggered . | . . . . . . . Exploration Rate (%) 35 | 4 44 36 31 9 97 24 Regions Visited 6 Branch Regions . Pre-discovered Areas . | . . . . . . . Known Exits Taken . | . . . . . . . Unknown Exits Taken 4 | 1 1 1 1 . . . Scrap Searched . | . . . . . . . Spaces Dug . | . . . . . . . Terrain Destroyed 397 | . . 41 95 58 67 136 Melee . | . . . . . . . Projectile 1 | . . . . . 1 . AOE 396 | . . 41 95 58 66 136 Terrain Rammed . | . . . . . . . Walls Destroyed . | . . . . . . . Machines Disabled . | . . . . . . . Actions | -11 -10 -9 -8 -7 -7 -7 --------- Run | Yrd Mat Mat Mat Fac Was Fac Total 3468 | 51 480 565 309 435 732 896 Wait 199 | . 23 14 40 62 . 60 Move 2866 | 35 399 460 217 322 672 761 Hop . | . . . . . . . Pick Up 60 | 2 5 15 6 9 11 12 Fast Attach 36 | 6 5 4 6 6 8 1 Attach 32 | . . 3 7 3 11 8 Detach 18 | . 3 3 5 6 1 . Swap 24 | . 3 9 2 3 1 6 Drop 38 | . 3 13 8 7 6 1 Fire 162 | . 33 41 17 7 22 42 Melee . | . . . . . . . Ram 17 | 8 6 3 . . . . Kick 16 | . . . 1 10 . 5 Crush . | . . . . . . . Escape Stasis . | . . . . . . . Rewire . | . . . . . . . Trap . | . . . . . . . Miscellaneous . | . . . . . . . Route ------- -11/Scrapyard -10/Materials -9/Materials (discovered 2 exits: [*Mat] / [*Min]) -8/Materials -7/Factory -7/Waste -7/Factory History --------- Turn | Location | Event 6 | -11/Scrapyard | Discovered new exit (range 16) 48 | -11/Scrapyard | Entered Materials 273 | -10/Materials | Discovered new exit (range 12) 317 | -10/Materials | Build established: Mutant 431 | -10/Materials | Repaired Wheel 528 | -10/Materials | Entered another Materials area 528 | -9/Materials | Evolved 2 slots: Utility x2 1106 | -9/Materials | Discovered new exit (range 11) 1269 | -9/Materials | Discovered new exit (range 12) 1287 | -9/Materials | Entered another Materials area 1287 | -8/Materials | Evolved 2 slots: Propulsion x2 1315 | -8/Materials | Garrison activated, responded to threat 1317 | -8/Materials | Lost 3 parts (1p2u) 1505 | -8/Materials | Met 7R-MNS 1507 | -8/Materials | Destroyed 8 combat bots 1615 | -8/Materials | Discovered new exit (range 14) 1632 | -8/Materials | Entered Factory 1632 | -7/Factory | Evolved 2 slots: Power x1, Utility x1 1633 | -7/Factory | Caught up to 7R-MNS 2099 | -7/Factory | Sucked down chute 2099 | -7/Factory | Entered Waste 2100 | -7/Waste | Met a frightened Derelict 2124 | -7/Waste | Spotted C-40 Crusher 2147 | -7/Waste | Destroyed C-40 Crusher 2170 | -7/Waste | Spotted C-40 Crusher 2172 | -7/Waste | Spotted C-40 Crusher 2211 | -7/Waste | Crushed by Compactor (1 part destroyed, 2 dropped) 2214 | -7/Waste | Crushed by Compactor (1 part destroyed, 2 dropped) 2217 | -7/Waste | Crushed by Compactor (1 part destroyed, 2 dropped) 2220 | -7/Waste | Crushed by Compactor (1 part destroyed, 1 dropped) 2223 | -7/Waste | Crushed by Compactor (1 part destroyed, 1 dropped) 2226 | -7/Waste | Crushed by Compactor (1 part destroyed, 2 dropped) 2227 | -7/Waste | Core integrity fell below 50% 2231 | -7/Waste | Crushed by Compactor (1 part destroyed, 1 dropped) 2256 | -7/Waste | Spotted C-40 Crusher 2262 | -7/Waste | Lost 7 parts (1p2n3u1w) 2273 | -7/Waste | Crushed by Compactor (1 part destroyed, 1 dropped) 2273 | -7/Waste | Spotted C-40 Crusher 2278 | -7/Waste | Spotted C-40 Crusher 2288 | -7/Waste | Warlord forces began an assault 2292 | -7/Waste | Allies destroyed C-40 Crusher 2345 | -7/Waste | Destroyed C-40 Crusher 2354 | -7/Waste | Destroyed C-40 Crusher 2370 | -7/Waste | Lost 14 allies 2398 | -7/Waste | Discovered new exit (range 16) 2428 | -7/Waste | Found Prototype Launcher 2991 | -7/Waste | Entered Factory 2991 | -7/Factory | Accompanied by 1 ally 3419 | -7/Factory | Core integrity fell below 20% 3508 | -7/Factory | Identified Tesla Bomb Launcher 3863 | -7/Factory | Lost 6 parts (1p3u2w) 4199 | -7/Factory | Destroyed by Y-54 Guardian with Gatling Laser Last Messages --------------- 04081_ U-05 Engineer builds a Wall. 04082_ U-05 Engineer lays Concrete. 04086_ U-05 Engineer builds a Wall. 04086_ U-05 Engineer lays Concrete. 04091_ The unstable cave ceiling collapses. 04091_ U-05 Engineer lays Concrete. 04093_ U-05 Engineer builds a Wall. 04093_ U-05 Engineer lays Concrete. 04097_ Tesla Bomb Launcher destroyed. 04097_ U-05 Engineer lays Concrete. 04102_ System corrupted: Heat flow error (+292). 04146_ System corrupted: Titanium Leg rejected. 04173_ Lgt. Nuclear Core destroyed. 04179_ Titanium Leg destroyed. 04180_ System corrupted: Matter fused (-8). 04184_ Hrd. Medium Armor Plating destroyed. 04184_ Critical hit (Burn: +37). 04192_ ALERT: Cargo convoy en route, clear transfer corridor. 04192_ Critical hit (Burn: +37). Map ----- +----------------------------------------------------+ | ???????????????????????????????????????????? | | ???????????????????????????????????????????? | | ???????????????????????????????????????????? | | ???????????????????????????????????????????? | | ???????????????????????????????????????????? | | ???????????????????????????????????????????? | | ???????????????????????????????????????????? | | ???????????????????????????????????????????? | | ???????????????????????????????????????????? | | ???????????????????????????????????????????? | | ???????????????????????????????????????????? | | ???????????????????????????????????????????? | | ???????????????????????????????????????????? | | ???????????????????????????????????????????? | | ???????????????????????????????????????????? | | ???????????????????????????????????????????? | | ???????????##############??????????????????? | | ???????????# #??????????????????? | | ???????????# ""G"" ! #??????????????????? | | ???????????# " " #??????????????????? | | ???????????# #??????????????????? | | ???????????# #??????????????????? | | ???????????# #??????????????????? | | ???????????# """ """ #??????????????????? | | ???????????# """ """ #??????????????????? | | ???????????# """@""" #??????????????????? | | ???????????# "" "" #??????????????????? | | ???????????# "" g"" #??????????????????? | | ????????#??# gY #?? ???????????? | | ????????# ?#########g#### #????????? | | ????????# ###### #????????? | | ????????# ???????? | | ????????# ???????? | | ????????# ????????? | | ????????# ????????? | | ????????# ?????????? | | ??###########/## ?????????? | | ??# # ## ?????????? | | ??# # #?# ??????????? | | ??# # #?? ??????????? | | ??# # #??? ???????????? | | ??# + #??? ???????????? | | ??# #= #???? ?????????????? | | ??# * # #???????????????????? | | ??# # #???????????????????? | | ??# # #???????????????????? | | ??# # ^^ #???????????????????? | | ??# # #???????????????????? | | ??# # #???????????????????? | | ??############## #???????????????????? | +----------------------------------------------------+ Best States ------------- Heat Dissipation 34 Energy Generation 23 Energy Capacity 265 Matter Stores 300 Matter Capacity 300 Sight Range 16 Terrain Scan Density 10 ECM Strength 2 Armor Coverage 675 Weapon Cycling 15 Evasion (%) 61 Targeting Accuracy 20 Target Analysis 5 Recoil Reduction 4 Item Schematics ----------------- None Robot Schematics ------------------ None Fabricated ------------ Nothing Alien Tech Used ----------------- None Achievements -------------- Backstab It Was An Accident, I Swear Power Corrupts The More The Merrier Challenges ------------ None Game ------ Seed PropulsionRagnarokLink Manual? 0 Play Time 01:14:40 Cumulative 11.0 hours Start 2024.03.08 @ 21:31:01 End 2024.03.13 @ 12:57:25 Sessions 5 Manual Loads 0 Difficulty Rogue Special Mode None Game No. 13 Rogue 12 Adventurer 1 Explorer 0 Win Type - Total 0 Types 0/0/0/0/0/0/0/0/0 Lore% 8 Gallery% 12 Achievement% 14 Wizard Run 0 Options --------- Layout 1 ASCII 0 Keyboard 1 Movement Vi Keybinds 0 Fullscreen 2 Font 24/Smallcaps Map View 50x40 Zoom Use 0% Tactical HUD 1 Map Filters NONE Filters NONE Steam 1 RUN: 495fcdbf-be61-4b00-a8ee-a4b3493ada9e